bitfinex/quotes_BTCUSD_20250421
["timestamp","ask_amount","ask_price","bid_price","bid_amount"]
[1745242341168,0.001,87072.0,87071.0,0.00413563]
[1745242341369,0.001,87072.0,87071.0,0.57383323]
[1745242341816,0.001,87072.0,87071.0,0.34413563]
[1745242342617,0.35014287,87072.0,87071.0,0.34413563]
[1745242342820,0.12044791,87072.0,87071.0,0.34413563]
[1745242343901,0.36468372,87072.0,87071.0,0.00413563]
[1745242344125,0.41538372,87072.0,87071.0,0.00413563]
[1745242344667,0.41438372,87072.0,87071.0,0.00413563]
[1745242344898,0.41338372,87072.0,87071.0,0.00413563]
[1745242345069,0.41442372,87072.0,87071.0,0.00413563]
[1745242345280,0.56442372,87072.0,87071.0,0.00413563]
[1745242345489,0.56342372,87072.0,87071.0,0.00413563]
[1745242345757,0.56442372,87072.0,87071.0,0.00413563]
[1745242346109,0.56542372,87072.0,87071.0,0.00413563]
[1745242346313,0.12148791,87072.0,87071.0,0.23383323]
[1745242346643,0.22312791,87072.0,87071.0,0.34413563]
[1745242346772,0.22412791,87072.0,87071.0,0.34413563]
[1745242346978,0.22412791,87072.0,87071.0,0.00413563]
[1745242346979,0.22312791,87072.0,87071.0,0.00413563]
[1745242347311,0.23866876,87072.0,87071.0,0.00413563]
[1745242347675,0.23966876,87072.0,87071.0,0.00413563]
[1745242348139,0.23766876,87072.0,87071.0,0.00413563]
[1745242348612,0.2610568,87072.0,87071.0,0.00413563]
[1745242349088,0.26974748,87072.0,87071.0,0.00413563]
[1745242349617,0.27074748,87072.0,87071.0,0.00413563]
[1745242349833,0.27174748,87072.0,87071.0,0.00413563]
[1745242350097,0.27374748,87072.0,87071.0,0.00413563]
[1745242350325,0.68994748,87072.0,87071.0,0.00413563]
[1745242350788,0.67540663,87072.0,87071.0,0.57383323]
[1745242351015,0.13975872,87072.0,87071.0,0.57383323]
[1745242351245,0.10768,87072.0,87071.0,0.57383323]
[1745242351470,0.10768,87072.0,87071.0,0.57483323]
[1745242351699,0.10364,87090.0,87089.0,0.56965012]
[1745242351929,0.10364,87091.0,87090.0,0.01148237]
[1745242352155,0.22308791,87091.0,87090.0,0.01148237]
[1745242352632,0.4162,87114.0,87109.0,0.24107469]
[1745242352873,0.12081191,87112.0,87110.0,0.56959263]
[1745242353080,0.001364,87112.0,87110.0,0.56959263]
[1745242353736,0.004364,87112.0,87110.0,0.56959263]
[1745242353966,0.00149936,87112.0,87111.0,0.0022957]
[1745242354411,0.00149936,87112.0,87110.0,0.58158573]
[1745242354695,0.00149936,87112.0,87111.0,0.00229558]
[1745242355374,0.00149936,87112.0,87110.0,0.58158573]
[1745242355605,0.00149936,87112.0,87110.0,0.58358573]
[1745242355841,0.00149936,87112.0,87110.0,0.58258573]
[1745242356075,0.00149936,87112.0,87111.0,0.00229559]
[1745242356318,0.00149936,87112.0,87111.0,0.002]
[1745242356551,0.12094727,87112.0,87111.0,0.23159212]
[1745242356763,0.12094727,87112.0,87111.0,0.57159212]
[1745242356972,0.00149936,87112.0,87111.0,0.57159212]
[1745242357610,0.00149936,87112.0,87111.0,0.57259212]
[1745242357816,0.00149936,87112.0,87111.0,0.57159212]
[1745242358016,0.00149936,87112.0,87111.0,0.56959212]
[1745242359157,0.00149936,87112.0,87111.0,0.57059212]
[1745242359359,0.00149936,87112.0,87111.0,0.57159212]
[1745242359557,0.00149936,87112.0,87111.0,0.57059212]
[1745242360533,0.00149936,87112.0,87111.0,0.57159212]
[1745242361095,0.0004224,87129.0,87128.0,0.56954733]
[1745242361296,0.000422,87147.0,87146.0,0.56949991]
[1745242361653,0.00087396,87147.0,87146.0,0.56949991]
[1745242361801,0.12032187,87147.0,87146.0,0.34]
[1745242362838,0.13486272,87147.0,87146.0,0.34]
[1745242363198,0.01147697,87131.0,87128.0,0.002]
[1745242363399,0.11944791,87130.0,87129.0,0.34]
[1745242367322,0.11944791,87130.0,87126.0,0.24102974]
[1745242367323,0.10663396,87147.0,87141.0,0.01147565]
[1745242367526,0.10663396,87147.0,87138.0,0.01147604]
[1745242367527,0.11944791,87146.0,87144.0,0.24097817]
[1745242367709,0.11944791,87146.0,87140.0,0.22951523]
[1745242367901,0.11944791,87146.0,87143.0,0.01147539]
[1745242368109,0.22950255,87145.0,87140.0,0.24099101]
[1745242368263,0.11944791,87144.0,87141.0,0.01147565]
[1745242369076,0.11944791,87144.0,87142.0,0.22951045]
[1745242369489,0.001,87144.0,87143.0,0.34]
[1745242370105,0.10663396,87147.0,87144.0,0.01147525]
[1745242370301,0.001,87145.0,87144.0,0.01147525]
[1745242370509,0.001,87145.0,87144.0,0.58097825]
[1745242370922,0.11944791,87146.0,87145.0,0.34]
[1745242371772,0.11944791,87146.0,87143.0,0.01147539]
[1745242372030,0.001,87144.0,87143.0,0.58098079]
[1745242372441,0.001,87145.0,87144.0,0.34]
[1745242372858,0.00187396,87147.0,87145.0,0.22950255]
[1745242373058,0.004,87159.0,87158.0,0.56946832]
[1745242373260,0.0004222,87166.0,87165.0,0.56944989]
[1745242373652,0.00055768,87166.0,87165.0,0.56944989]
[1745242374058,1e-08,87167.0,87166.0,0.34]
[1745242375121,1e-08,87167.0,87165.0,0.22944989]
[1745242375368,1e-08,87167.0,87166.0,0.00229405]
[1745242375587,0.0004221,87179.0,87166.0,0.00229405]
[1745242375588,1e-08,87176.0,87175.0,0.22942357]
[1745242375807,0.0004221,87179.0,87178.0,0.34]
[1745242376026,1e-08,87179.0,87178.0,0.34]
[1745242376433,1e-08,87182.0,87181.0,0.56940778]
[1745242376651,0.0225689,87200.0,87199.0,0.56936042]
[1745242376858,0.0227043,87200.0,87199.0,0.56936042]
[1745242377474,0.1051426,87218.0,87204.0,0.01146736]
[1745242377683,0.1051426,87218.0,87209.0,0.56933412]
[1745242378236,0.0004226,87218.0,87209.0,0.56933412]
[1745242382606,0.0004226,87218.0,87209.0,0.68878203]
[1745242383008,0.0004226,87218.0,87209.0,0.68978203]
[1745242383655,0.0004226,87218.0,87209.0,0.68878203]
[1745242383860,0.0004226,87218.0,87209.0,0.68978203]
[1745242384038,0.0004226,87218.0,87209.0,0.57033412]
[1745242384598,0.0004226,87218.0,87209.0,3.54837512]
[1745242385472,0.0004226,87218.0,87209.0,2.979041]
[1745242385685,0.13502876,87210.0,87209.0,2.979041]
[1745242385941,0.64308617,87210.0,87209.0,2.979041]
[1745242386191,0.65006101,87210.0,87209.0,2.979041]
[1745242387080,0.65006101,87210.0,87209.0,2.978041]
[1745242388135,0.5582036,87210.0,87209.0,2.978041]
[1745242388340,0.8128836,87210.0,87209.0,2.978041]
[1745242388566,0.01147052,87180.0,87172.0,0.01147157]
[1745242388775,0.24392758,87189.0,87188.0,0.0001354]
[1745242388989,0.46805549,87189.0,87188.0,0.0001354]
[1745242389220,0.28398876,87189.0,87188.0,0.0001354]
[1745242389434,0.00108,87210.0,87209.0,0.22933412]
[1745242389651,0.00104,87210.0,87209.0,0.56933412]
[1745242389872,0.004,87219.0,87217.0,0.34]
[1745242390927,0.004,87219.0,87216.0,0.22931572]
[1745242392210,0.0004626,87218.0,87216.0,0.22931572]
[1745242392453,0.0003465,87233.0,87232.0,0.34]
[1745242392885,0.00048187,87233.0,87232.0,0.34]
[1745242393300,4e-05,87250.0,87237.0,0.01146302]
[1745242393522,4e-05,87250.0,87239.0,0.34]
[1745242393523,0.00049115,87240.0,87239.0,0.34]
[1745242394502,0.00049115,87240.0,87239.0,0.3882]
[1745242395138,0.00053115,87240.0,87239.0,0.40020082]
[1745242395349,0.00053115,87240.0,87239.0,0.51964873]
[1745242395551,0.002,87249.0,87244.0,0.56924212]
[1745242395976,0.002,87249.0,87244.0,0.68869003]
[1745242396398,1e-08,87245.0,87244.0,0.68869003]
[1745242397531,0.002,87249.0,87248.0,0.61743161]
[1745242397810,0.002,87249.0,87248.0,0.73687952]
[1745242398017,0.002,87249.0,87248.0,0.61743161]
[1745242398446,0.002,87249.0,87248.0,0.56923161]
[1745242399467,0.002,87249.0,87248.0,0.68867952]
[1745242399856,0.0004215,87275.0,87259.0,0.56920271]
[1745242400120,0.00017527,87260.0,87259.0,0.56920271]
[1745242400368,1e-08,87267.0,87266.0,0.56918433]
[1745242400776,1e-08,87267.0,87266.0,0.61748433]
[1745242401187,1e-08,87267.0,87266.0,0.56918433]
[1745242402022,1e-08,87267.0,87266.0,0.68863224]
[1745242403133,4.001e-05,87267.0,87266.0,0.68963224]
[1745242403514,4.001e-05,87267.0,87266.0,0.57018433]
[1745242403719,8.001e-05,87267.0,87266.0,0.57018433]
[1745242404686,0.01263488,87287.0,87286.0,0.34]
[1745242404913,0.01277012,87287.0,87286.0,0.34]
[1745242406512,0.13221803,87287.0,87285.0,0.34]
[1745242406717,0.11944791,87286.0,87285.0,0.34]
[1745242407681,0.01454085,87285.0,87275.0,0.22916063]
[1745242407925,0.11944791,87284.0,87280.0,0.01145737]
[1745242408134,0.11944791,87284.0,87281.0,0.01145724]
[1745242408530,0.11944791,87284.0,87281.0,0.24060218]
[1745242408921,0.11944791,87284.0,87282.0,0.22913995]
[1745242409122,0.11944791,87284.0,87281.0,0.24060218]
[1745242409330,0.13398876,87284.0,87283.0,0.22913969]
[1745242409891,0.001,87286.0,87285.0,0.56913444]
[1745242410916,0.01277012,87287.0,87286.0,0.34]
[1745242412338,0.01277012,87287.0,87285.0,0.23013444]
[1745242412548,0.000422,87306.0,87297.0,0.56910294]
[1745242414512,1e-08,87298.0,87297.0,0.56910294]
[1745242415894,1e-08,87298.0,87297.0,0.57625148]
[1745242416915,0.000422,87306.0,87305.0,0.61798195]
[1745242417522,0.000422,87306.0,87305.0,0.62513049]
[1745242417764,0.000422,87306.0,87305.0,0.62613049]
[1745242417942,0.002,87309.0,87308.0,0.56907408]
[1745242417943,1e-08,87309.0,87308.0,0.56907408]
[1745242418342,1e-08,87309.0,87308.0,0.57622262]
[1745242418550,1e-08,87309.0,87308.0,0.58815717]
[1745242419400,1e-08,87309.0,87308.0,0.59115717]
[1745242419554,1e-08,87309.0,87308.0,0.59015717]
[1745242419765,1e-08,87309.0,87308.0,0.58815717]
[1745242420161,1e-08,87309.0,87308.0,0.58915717]
[1745242420364,1e-08,87309.0,87308.0,0.36008309]
[1745242420365,0.22907146,87309.0,87308.0,0.36008309]
[1745242420567,0.46922022,87309.0,87308.0,0.00814854]
[1745242420741,0.47642177,87309.0,87308.0,0.00814854]
[1745242420944,0.47642177,87309.0,87308.0,0.24912058]
[1745242420945,0.23280947,87309.0,87308.0,0.24912058]
[1745242421153,0.00820156,87309.0,87308.0,0.23722262]
[1745242421543,0.00100001,87309.0,87308.0,0.23622262]
[1745242422229,1e-08,87309.0,87308.0,0.01915981]
[1745242422445,0.22907146,87309.0,87308.0,0.01915981]
[1745242422650,0.2356282,87309.0,87308.0,0.01915981]
[1745242423068,0.96817333,87309.0,87308.0,0.00714854]
[1745242423277,1.01417333,87309.0,87308.0,0.00714854]
[1745242423494,1.01417333,87309.0,87273.0,0.24062274]
[1745242423495,0.01145711,87282.0,87273.0,0.01145829]
[1745242423695,0.10736,87283.0,87279.0,0.2406075]
[1745242423961,0.10736,87283.0,87282.0,0.34]
[1745242424225,0.10736,87305.0,87302.0,0.58054256]
[1745242424439,0.11944791,87304.0,87302.0,0.35145449]
[1745242424668,0.11944791,87304.0,87302.0,0.58054425]
[1745242424900,0.00646192,87303.0,87302.0,0.58054425]
[1745242425123,0.12590983,87303.0,87302.0,0.58054425]
[1745242425388,0.12590983,87303.0,87301.0,0.34]
[1745242425630,0.36307858,87302.0,87301.0,0.34]
[1745242425854,0.36307858,87302.0,87289.0,0.34]
[1745242425855,0.25509893,87297.0,87289.0,0.34]
[1745242426071,0.11944791,87296.0,87293.0,0.01145567]
[1745242426249,0.12586379,87296.0,87293.0,0.24056677]
[1745242426657,0.12586379,87296.0,87295.0,0.56910819]
[1745242426860,0.12586379,87296.0,87295.0,0.34]
[1745242428028,0.12586379,87296.0,87287.0,0.22912704]
[1745242428029,0.01454085,87282.0,87276.0,0.0114579]
[1745242428239,0.01454085,87274.0,87273.0,0.0116728]
[1745242428450,0.4162,87282.0,87279.0,0.24060644]
[1745242428666,0.4162,87282.0,87281.0,0.22914494]
[1745242428879,0.4162,87307.0,87298.0,0.01145501]
[1745242429085,0.4162,87307.0,87289.0,0.34]
[1745242429086,0.22908457,87304.0,87289.0,0.34]
[1745242429304,0.22909637,87300.0,87293.0,0.35145567]
[1745242429506,0.36308897,87299.0,87293.0,0.34]
[1745242429714,0.36308897,87299.0,87293.0,0.35145567]
[1745242429933,0.01454085,87297.0,87293.0,0.35145567]
[1745242430134,0.11944791,87296.0,87293.0,0.35145567]
[1745242430764,0.11944791,87296.0,87293.0,0.24056864]
[1745242430988,0.11944791,87296.0,87292.0,0.34]
[1745242431183,0.22910287,87298.0,87271.0,0.01145856]
[1745242431184,0.01454085,87287.0,87271.0,0.01145856]
[1745242431386,0.01454085,87285.0,87276.0,0.0114579]
[1745242431536,0.01454085,87281.0,87277.0,0.01145777]
[1745242431761,0.4162,87287.0,87284.0,0.01145685]
[1745242431921,0.4162,87287.0,87286.0,0.56913181]
[1745242431922,0.5236,87287.0,87286.0,0.56913181]
[1745242432359,0.4162,87287.0,87286.0,0.34]
[1745242434218,0.51311795,87287.0,87286.0,0.34]
[1745242434913,0.01454085,87284.0,87279.0,0.0114575]
[1745242435119,0.01454085,87284.0,87250.0,0.0008422]
[1745242435120,0.37916332,87274.0,87250.0,0.0008422]
[1745242435322,0.51315208,87274.0,87273.0,0.00013524]
[1745242436315,0.62055208,87274.0,87273.0,0.00013524]
[1745242436745,0.47055208,87274.0,87273.0,0.00013524]
[1745242436953,0.01454085,87257.0,87251.0,0.01146118]
[1745242437176,0.13398876,87256.0,87255.0,0.01146066]
[1745242437391,0.11944791,87257.0,87255.0,0.01146066]
[1745242438289,0.11944791,87257.0,87255.0,0.01246066]
[1745242438492,0.01454085,87256.0,87255.0,0.001]
[1745242438710,0.13398876,87256.0,87255.0,0.002]
[1745242438925,0.22917652,87269.0,87255.0,0.002]
[1745242438926,0.15,87281.0,87272.0,0.01145842]
[1745242439134,0.11944791,87280.0,87273.0,0.22916507]
[1745242439326,0.15,87272.0,87271.0,0.34]
[1745242439528,0.28398876,87272.0,87271.0,0.34]
[1745242439983,0.11944791,87272.0,87271.0,0.34]
[1745242440191,0.11944791,87272.0,87269.0,0.01145882]
[1745242440422,0.11944791,87271.0,87269.0,0.01145882]
[1745242440676,0.11944791,87271.0,87269.0,0.35145882]
[1745242440870,0.11944791,87271.0,87269.0,0.34]
[1745242441280,0.3486205,87271.0,87269.0,0.34]
[1745242441901,0.22917645,87269.0,87261.0,0.24065546]
[1745242442106,0.13398876,87268.0,87265.0,0.01145934]
[1745242442304,0.13398876,87268.0,87265.0,0.35145934]
[1745242442720,0.13398876,87268.0,87267.0,0.34]
[1745242443672,0.13398876,87268.0,87263.0,0.35145961]
[1745242443879,0.13398876,87268.0,87265.0,0.01145934]
[1745242444313,0.13398876,87268.0,87265.0,0.35145934]
[1745242444512,0.5662,87273.0,87269.0,0.34]
[1745242444715,0.01454085,87263.0,87261.0,0.22919746]
[1745242444887,0.01454085,87263.0,87262.0,0.56919483]
[1745242445092,0.13398876,87263.0,87262.0,0.56919483]
[1745242445818,0.13398876,87263.0,87262.0,0.34]
[1745242446020,0.01454085,87262.0,87254.0,0.22921419]
[1745242446315,0.01454085,87260.0,87257.0,0.35146039]
[1745242446521,0.11944791,87259.0,87257.0,0.24066618]
[1745242446675,0.11944791,87259.0,87257.0,0.01146039]
[1745242447102,0.11944791,87259.0,87257.0,0.34]
[1745242447728,0.34865315,87259.0,87257.0,0.34]
[1745242448370,0.11944791,87259.0,87257.0,0.34]
[1745242448835,0.3486507,87259.0,87257.0,0.34]
[1745242449007,0.11944791,87259.0,87257.0,0.34]
[1745242449240,0.11944791,87259.0,87254.0,0.24067488]
[1745242449241,0.01454085,87255.0,87254.0,0.34]
[1745242449451,0.13398876,87255.0,87254.0,0.34]
[1745242449868,0.39376195,87252.0,87250.0,0.00097747]
[1745242450078,0.01454085,87251.0,87250.0,0.00097747]
[1745242450287,0.13398876,87251.0,87250.0,0.00097747]
[1745242451325,0.13498876,87251.0,87250.0,0.00097747]
[1745242451768,0.13498876,87251.0,87234.0,0.000842]
[1745242451769,0.39380662,87235.0,87234.0,0.000842]
[1745242451989,0.68593362,87235.0,87234.0,0.000842]
[1745242452198,0.22932868,87212.0,87205.0,0.22934464]
[1745242452410,0.22931956,87215.0,87210.0,0.01146657]
[1745242452631,0.34876747,87215.0,87210.0,0.01146657]
[1745242452839,0.15,87233.0,87226.0,0.34]
[1745242453053,0.22928464,87228.0,87226.0,0.34]
[1745242453274,0.13398876,87227.0,87226.0,0.34]
[1745242453499,0.13398876,87227.0,87210.0,0.24135047]
[1745242453500,0.01454085,87211.0,87210.0,0.0120196]
[1745242453715,0.34877677,87211.0,87210.0,0.0120196]
[1745242453926,0.34877677,87211.0,87205.0,0.00045115]
[1745242453927,0.22933149,87210.0,87205.0,0.00045115]
[1745242454148,0.11944791,87209.0,87205.0,0.01191838]
[1745242454381,0.11944791,87209.0,87205.0,0.00045115]
[1745242454596,0.22934201,87206.0,87205.0,0.00045115]
[1745242454816,0.22934201,87206.0,87205.0,0.01217959]
[1745242455030,0.34878992,87206.0,87205.0,0.01417959]
[1745242455260,0.34878992,87206.0,87205.0,0.01217959]
[1745242455470,0.85333077,87206.0,87205.0,0.00145115]
[1745242456600,0.85333077,87206.0,87205.0,0.00045115]
[1745242457417,0.85333077,87206.0,87205.0,0.00145115]
[1745242457626,0.85333077,87206.0,87205.0,0.00045115]
[1745242458079,0.85533077,87206.0,87205.0,0.00045115]
[1745242458293,1.31483077,87206.0,87205.0,1e-08]
[1745242458728,1.31683077,87206.0,87205.0,1e-08]
[1745242458936,0.35454085,87198.0,87197.0,1e-08]
[1745242459157,0.39391969,87192.0,87191.0,0.00086001]
[1745242459370,1.2695676,87192.0,87191.0,0.00099538]
[1745242460013,0.9295676,87192.0,87191.0,0.00099538]
[1745242460628,1.04901551,87192.0,87191.0,0.00099538]
[1745242460883,0.9295676,87192.0,87191.0,0.00099538]
[1745242461221,0.9315676,87192.0,87191.0,0.00099538]
[1745242461428,0.9315676,87192.0,87191.0,1e-08]
[1745242461429,1.2715676,87192.0,87191.0,1e-08]
[1745242461641,1.3196676,87192.0,87191.0,1e-08]
[1745242461868,1.3197076,87192.0,87191.0,1e-08]
[1745242462070,0.22946131,87161.0,87155.0,0.2294757]
[1745242462271,0.10816,87163.0,87158.0,0.35147341]
[1745242462473,0.10816,87163.0,87162.0,0.22945779]
[1745242463312,0.1196317,87171.0,87165.0,0.01147249]
[1745242463518,0.01147275,87163.0,87156.0,0.34]
[1745242463718,0.22947084,87158.0,87156.0,0.34]
[1745242464767,0.24094425,87158.0,87155.0,0.011673]
[1745242464979,0.22947084,87158.0,87156.0,0.001]
[1745242465152,0.13398876,87157.0,87156.0,0.001]
[1745242465558,0.13398876,87157.0,87156.0,0.003]
[1745242465763,0.13398876,87157.0,87156.0,0.002]
[1745242466941,0.22947358,87156.0,87155.0,0.012673]
[1745242467159,0.11944791,87156.0,87155.0,0.012673]
[1745242467361,0.11944791,87156.0,87155.0,0.011673]
[1745242467614,0.01454085,87164.0,87159.0,0.01147328]
[1745242467932,0.11944791,87163.0,87160.0,0.01147315]
[1745242468339,0.01147328,87159.0,87155.0,0.013673]
[1745242468586,0.01147288,87162.0,87156.0,0.01147367]
[1745242468793,0.11944791,87161.0,87159.0,0.01147328]
[1745242469006,0.11944791,87161.0,87158.0,0.35147341]
[1745242469215,0.22946305,87160.0,87158.0,0.34]
[1745242469427,0.13398876,87159.0,87158.0,0.34]
[1745242469844,0.22947358,87156.0,87155.0,0.011673]
[1745242470049,0.34892149,87156.0,87155.0,0.011673]
[1745242470576,0.11944791,87156.0,87155.0,0.011673]
[1745242471003,0.11944791,87156.0,87155.0,0.012673]
[1745242472167,0.11944791,87156.0,87155.0,0.24214922]
[1745242472379,0.11944791,87156.0,87155.0,0.58214922]
[1745242472780,4e-05,87157.0,87156.0,0.34]
[1745242473544,4e-05,87157.0,87156.0,0.3885]
[1745242473962,4e-05,87157.0,87156.0,0.0485]
[1745242474169,4e-05,87157.0,87156.0,0.05279455]
[1745242474375,4e-05,87157.0,87156.0,0.10239455]
[1745242475456,4e-05,87157.0,87156.0,0.0991]
[1745242476694,4e-05,87157.0,87156.0,0.1001]
[1745242476910,4e-05,87157.0,87156.0,0.1011]
[1745242479339,4e-05,87157.0,87156.0,0.003]
[1745242479550,0.01454085,87169.0,87158.0,0.01147341]
[1745242479756,0.01454085,87169.0,87156.0,0.003]
[1745242479757,0.09185741,87163.0,87156.0,0.003]
[1745242479972,0.13092079,87162.0,87156.0,0.003]
[1745242480179,0.11944791,87162.0,87156.0,0.003]
[1745242480382,0.11944791,87162.0,87159.0,0.01147328]
[1745242480588,0.01065572,87161.0,87158.0,0.35147341]
[1745242480746,0.11944791,87160.0,87158.0,0.35147341]
[1745242480941,0.11944791,87160.0,87158.0,0.1442252]
[1745242481179,0.15,87186.0,87159.0,0.22946568]
[1745242481364,0.11944791,87185.0,87181.0,0.01147038]
[1745242481565,0.1082,87188.0,87187.0,0.22939199]
[1745242481771,0.10724,87192.0,87191.0,0.22938147]
[1745242481982,0.22668791,87192.0,87191.0,0.22938147]
[1745242482191,4e-05,87192.0,87191.0,0.22938147]
[1745242482820,4e-05,87192.0,87191.0,0.22951687]
[1745242483051,4e-05,87192.0,87191.0,0.56951687]
[1745242483266,0.004,87219.0,87210.0,0.01146657]
[1745242483488,0.19905741,87239.0,87238.0,0.22925789]
[1745242483717,0.33984646,87239.0,87238.0,0.56925789]
[1745242484138,0.33984646,87239.0,87238.0,0.58125323]
[1745242484293,0.31850532,87239.0,87238.0,0.58125323]
[1745242484652,0.22764791,87239.0,87238.0,0.58125323]
[1745242484810,0.22864791,87239.0,87238.0,0.58125323]
[1745242485006,0.22909859,87239.0,87238.0,0.58125323]
[1745242485215,0.22809859,87239.0,87238.0,0.58125323]
[1745242485415,0.12089859,87239.0,87238.0,0.58125323]
[1745242486287,0.11989859,87239.0,87238.0,0.58125323]
[1745242486494,0.00045068,87239.0,87238.0,0.58125323]
[1745242486843,0.002,87249.0,87248.0,0.56923161]
[1745242487261,0.00213512,87249.0,87248.0,0.56923161]
[1745242487819,0.0004214,87261.0,87260.0,0.56920009]
[1745242490236,0.0014214,87261.0,87260.0,0.56920009]
[1745242491518,0.002,87279.0,87278.0,0.56915282]
[1745242491704,0.00213527,87279.0,87278.0,0.56915282]
[1745242492903,0.00213527,87279.0,87278.0,0.34]
[1745242493314,0.00313527,87279.0,87278.0,0.34]
[1745242494116,0.00413527,87279.0,87278.0,0.34]
[1745242495486,0.12358318,87279.0,87278.0,0.34]
[1745242496862,0.13812403,87279.0,87278.0,0.34]
[1745242499453,0.36827422,87279.0,87278.0,0.34]
[1745242499662,0.13912403,87279.0,87278.0,0.34]
[1745242500064,0.13912403,87279.0,87266.0,0.01145921]
[1745242500065,0.02599941,87271.0,87253.0,0.01146092]
[1745242500241,0.02599941,87271.0,87257.0,0.01146039]
[1745242500242,0.01454085,87269.0,87257.0,0.01146039]
[1745242500444,0.01454085,87267.0,87260.0,0.01146]
[1745242500625,0.01454085,87265.0,87260.0,0.01146]
[1745242500838,0.01454085,87263.0,87258.0,0.22920534]
[1745242501103,0.11944791,87262.0,87259.0,0.35146013]
[1745242501476,0.11944791,87262.0,87259.0,0.34]
[1745242502091,0.11944791,87262.0,87256.0,0.01146052]
[1745242502092,0.11944791,87262.0,87257.0,0.01146039]
[1745242502287,0.16454085,87261.0,87256.0,0.34]
[1745242502446,0.15,87249.0,87238.0,0.01197394]
[1745242502647,0.13398876,87248.0,87238.0,0.01146289]
[1745242502897,0.13398876,87248.0,87244.0,0.0114621]
[1745242503093,0.13398876,87248.0,87242.0,0.01146236]
[1745242503094,0.13398876,87248.0,87243.0,0.01146223]
[1745242503302,0.13398876,87248.0,87245.0,0.01146197]
[1745242503498,0.13298876,87248.0,87244.0,0.0114621]
[1745242503738,0.13298876,87248.0,87245.0,0.01146197]
[1745242503915,0.13298876,87248.0,87245.0,0.35146197]
[1745242504294,0.13298876,87248.0,87245.0,0.34]
[1745242504537,0.15,87239.0,87238.0,0.01163691]
[1745242504744,0.11944791,87239.0,87238.0,0.01177203]
[1745242504962,0.34870317,87239.0,87238.0,0.00013512]
[1745242505169,0.11844791,87239.0,87238.0,0.01208194]
[1745242505373,0.13298876,87239.0,87238.0,0.00013512]
[1745242505582,0.28298876,87239.0,87238.0,0.00013512]
[1745242506471,0.28298876,87239.0,87199.0,0.01146802]
[1745242506472,0.01454085,87211.0,87199.0,0.01146802]
[1745242506679,0.01454085,87211.0,87203.0,0.01231009]
[1745242506680,0.01454085,87209.0,87203.0,0.01231009]
[1745242506882,0.01454085,87207.0,87204.0,0.01146736]
[1745242507086,0.11944791,87206.0,87204.0,0.01146736]
[1745242507304,0.10712,87216.0,87212.0,0.34]
[1745242507515,0.4162,87222.0,87220.0,0.34]
[1745242507729,0.4162,87222.0,87221.0,0.56930257]
[1745242507954,0.15,87224.0,87222.0,0.34]
[1745242507955,0.13398876,87223.0,87222.0,0.34]
[1745242508165,0.01454085,87223.0,87222.0,0.34]
[1745242508609,0.13398876,87223.0,87222.0,0.34]
[1745242509033,0.13398876,87223.0,87218.0,0.34]
[1745242509248,0.01454085,87221.0,87218.0,0.34]
[1745242509452,0.01454085,87219.0,87218.0,0.34]
[1745242509671,0.13398876,87219.0,87216.0,0.01196621]
[1745242509877,0.11944791,87218.0,87216.0,0.01196621]
[1745242510017,0.11944791,87218.0,87211.0,0.34]
[1745242510018,0.01454085,87214.0,87211.0,0.34]
[1745242510236,0.01454085,87212.0,87211.0,0.34]
[1745242510433,0.13398876,87212.0,87211.0,0.34]
[1745242510863,0.13398876,87212.0,87179.0,0.10712]
[1745242511065,0.01454085,87210.0,87201.0,0.01146775]
[1745242511331,0.01454085,87208.0,87207.0,0.01146696]
[1745242511621,0.13398876,87208.0,87207.0,0.01189575]
[1745242511798,0.13398876,87208.0,87197.0,0.01146828]
[1745242511976,0.01454085,87206.0,87198.0,0.01146815]
[1745242512187,0.01454085,87204.0,87200.0,0.01146788]
[1745242512410,0.13398876,87204.0,87200.0,0.01146788]
[1745242512951,0.13398876,87204.0,87201.0,0.01146775]
[1745242513155,0.12166085,87211.0,87210.0,0.56933149]
[1745242513343,0.10712,87211.0,87210.0,0.56933149]
[1745242514121,5.68e-05,87224.0,87214.0,0.56932098]
[1745242514323,5.68e-05,87224.0,87222.0,0.56929994]
[1745242514522,5.68e-05,87224.0,87223.0,0.34]
[1745242514728,0.11950471,87224.0,87223.0,0.34]
[1745242515531,0.11950471,87224.0,87222.0,0.22929994]
[1745242516380,5.68e-05,87224.0,87222.0,0.22929994]
[1745242517146,0.11944791,87223.0,87221.0,0.35146512]
[1745242517475,0.01454085,87222.0,87221.0,0.34]
[1745242517626,0.01454085,87221.0,87214.0,0.01146604]
[1745242517834,0.01454085,87219.0,87212.0,0.35146631]
[1745242518035,0.16454085,87217.0,87210.0,0.001]
[1745242518234,0.01454085,87215.0,87210.0,0.001]
[1745242518536,0.01454085,87213.0,87210.0,0.001]
[1745242518752,0.13398876,87211.0,87210.0,0.001]
[1745242519168,0.13398876,87211.0,87210.0,0.341]
[1745242519169,0.11944791,87211.0,87210.0,0.341]
[1745242519367,0.11944791,87211.0,87210.0,0.001]
[1745242519585,0.13398876,87211.0,87210.0,0.001]
[1745242520402,0.13498876,87211.0,87210.0,0.001]
[1745242520601,0.13398876,87211.0,87210.0,0.001]
[1745242520807,0.13498876,87211.0,87210.0,0.001]
[1745242521200,0.13398876,87211.0,87210.0,0.001]
[1745242521606,0.13498876,87211.0,87210.0,0.001]
[1745242522887,0.13398876,87211.0,87210.0,0.001]
[1745242523085,0.13598876,87211.0,87210.0,0.001]
[1745242523290,0.13498876,87211.0,87210.0,0.001]
[1745242523534,0.24058876,87211.0,87210.0,0.341]
[1745242523708,0.23958876,87211.0,87210.0,0.341]
[1745242523924,0.24058876,87211.0,87210.0,0.001]
[1745242524120,0.4697425,87211.0,87210.0,0.001]
[1745242524516,0.4687425,87211.0,87210.0,0.001]
[1745242524719,0.4697425,87211.0,87210.0,0.001]
[1745242525817,0.4707425,87211.0,87210.0,0.001]
[1745242526013,0.4697425,87211.0,87210.0,0.001]
[1745242526476,0.4707425,87211.0,87210.0,0.001]
[1745242527085,0.8869425,87211.0,87210.0,0.001]
[1745242527697,1.00639041,87211.0,87210.0,0.001]
[1745242527912,0.8859425,87211.0,87210.0,0.001]
[1745242528115,0.8849425,87211.0,87210.0,0.001]
[1745242528312,0.65561364,87211.0,87210.0,0.001]
[1745242528536,0.65565364,87211.0,87210.0,0.001]
[1745242528755,0.65665364,87211.0,87210.0,0.001]
[1745242529177,0.65865364,87211.0,87210.0,0.001]
[1745242529375,0.24045364,87211.0,87210.0,0.001]